Workbook

Sheet Республиканские заказники
A1: № | B1: Наименование | C1: Дата принятия | D1: Район | E1: Площадь, га
A2: 1 | B2: 2 | C2: 3 | D2: 4 | E2: 5
A3: Гидрологические
A4: 1. | B4: «Белое» | C4: Постановление Совета Министров № 1833 от 27.12.2007 г. | D4: Глубокский и Ушачский | E4: 483.2
A5: 2. | B5: «Болото Мох» | C5: Постановление Совета Министров № 1833 от 27.12.2007 г. | D5: Миорский | E5: 4602.03
A6: 3. | B6: «Глубокое–Большое Островито» | C6: Постановление Совета Министров № 1833 от 27.12.2007 г. | D6: Полоцкий | E6: 1353.38
A7: 4. | B7: «Долгое» | C7: Постановление Совета Министров № 1833 от 27.12.2007 г. | D7: Глубокский | E7: 644.45
A8: 5. | B8: «Корытенский Мох» | C8: Постановление Совета Министров № 1833 от 27.12.2007 г. | D8: Городокский | E8: 1388.9
A9: 6. | B9: «Кривое» | C9: Постановление Совета Министров № 1833 от 27.12.2007 г. | D9: Ушачский | E9: 1063.72
A10: 7. | B10: «Ричи» | C10: Постановление Совета Министров № 1833 от 27.12.2007 г. | D10: Браславский | E10: 1390.62
A11: 8. | B11: «Сосно» | C11: Постановление Совета Министров № 1833 от 27.12.2007 г. | D11: Шумилинский | E11: 168.33
A12: 9. | B12: Сервечь | C12: Постановление Совета Министров № 981 от 29.07.1997 г. | D12: Глубокский и Докшицкий | E12: 9068
A13: 10. | B13: Верхневилейский | C13: Постановление Кабинета Министров № 201 от 21.03.1996 | D13: Докшицкий | E13: 753
A14: 11. | B14: Швакшты | C14: Постановление Кабинета Министров № 631 от 25.09.1996 | D14: Поставский | E14: 5603
A15: Биологические
A16: 12. | B16: «Запольский» | C16: Постановление Совета Министров № 1833 от 27.12.2007 г. | D16: Витебский | E16: 794.04
A17: 13. | B17: «Лонно» | C17: Постановление Совета Министров № 1833 от 27.12.2007 г. | D17: Полоцкий | E17: 443.07
A18: 14. | B18: «Мошно» | C18: Постановление Совета Министров № 1833 от 27.12.2007 г. | D18: Витебский | E18: 398.76
A19: 15. | B19: «Чистик» | C19: Постановление Совета Министров № 1833 от 27.12.2007 г. | D19: Витебский | E19: 299.98
A20: Ландшафтные
A21: 16. | B21: «Ельня» | C21: Постановление Совета Министров № 1833 от 27.12.2007 г. | D21: Миорский и Шарковщинский | E21: 25301
A22: 17. | B22: Селява | C22: Постановление Совета Министров № 99 от 25.02.1993 г. | D22: Чашникский | E22: 328
A23: 18. | B23: Бабиновичский | C23: Постановление Совета Министров № 1458 от 17.09.1998 г. | D23: Лиозненский | E23: 10547
A24: 19. | B24: Козьянский | C24: Постановление Совета Министров № 1765 от 11.11.1999 г. | D24: Полоцкий и Шумилинский | E24: 26060
A25: 20. | B25: Синьша | C25: Постановление Совета Министров № 202 от 21.03.1996 г. | D25: Россонский | E25: 13398
A26: 21. | B26: Освейский | C26: Постановление Совета Министров № 4 от 3.01.2000 г. | D26: Верхнедвинский | E26: 27754
A27: 22. | B27: Красный Бор | C27: Постановление Совета Министров № 982 от 29.07.1997 г. | D27: Верхнедвинский и Россонский | E27: 34231
A28: Итого | E28: =SUM(A4:E27) -> 166073.48
A29: % от территории области | E29: =E28/4004839 -> 0.04146820384

Sheet Республиканские заказники.
B1: Заказники республиканского значения на 1.01.2014
B2: № | C2: Наименование | D2: Дата принятия | E2: Район | F2: Площадь, (га)
B3: 1 | C3: 2 | D3: 3 | E3: 4 | F3: 5
B4: Гидрологические
B5: 1 | C5: “Белое” | D5: Постановление Совета Министров № 1833 от 27.12.2007 г. | E5: Глубокский (241,2 га) и Ушачский 242,0 га) | F5: 483.2
B6: 2 | C6: “Болото Мох” | D6: Постановление Совета Министров № 1833 от 27.12.2007 г. | E6: Миорский | F6: 4602.03
B7: 3 | C7: “Глубокое-Большое Островито” | D7: Постановление Совета Министров № 1833 от 27.12.2007 г. | E7: Полоцкий | F7: 1353.38
B8: 4 | C8: “Долгое” | D8: Постановление Совета Министров № 1833 от 27.12.2007 г. | E8: Глубокский | F8: 644.45
B9: 5 | C9: “Корытенский Мох” | D9: Постановление Совета Министров № 1833 от 27.12.2007 г. | E9: Городокский | F9: 1388.9
B10: 6 | C10: “Кривое” | D10: Постановление Совета Министров № 1833 от 27.12.2007 г. | E10: Ушачский | F10: 1063.72
B11: 7 | C11: “Ричи” | D11: Постановление Совета Министров № 1833 от 27.12.2007 г. | E11: Браславский | F11: 1390.62
B12: 8 | C12: “Сосно” | D12: Постановление Совета Министров № 1833 от 27.12.2007 г. | E12: Шумилинский | F12: 168.33
B13: 9 | C13: “Сервечь” | D13: Постановление Совета Министров № 981 от 29.07.1997 г. | E13: Глубокский (1 188 га) и Докшицкий (7 880 га) | F13: 9068
B14: 10 | C14: “Верхневилейский” | D14: Постановление Кабинета Министров № 201 от 21.03.1996 н. | E14: Докшицкий | F14: 753
B15: 11 | C15: “Швакшты” | D15: Постановление Кабинета Министров № 631 от 25.09.1996 г. | E15: Поставский | F15: 5603 | G15: =SUM(F5:F15) -> 26518.63
B16: Биологические
B17: 12 | C17: “Запольский” | D17: Постановление Совета Министров № 1833 от 27.12.2007 г. | E17: Витебский | F17: 794.04
B18: 13 | C18: “Лонно” | D18: Постановление Совета Министров № 1833 от 27.12.2007 г. | E18: Полоцкий | F18: 443.07
B19: 14 | C19: “Мошно” | D19: Постановление Совета Министров № 1833 от 27.12.2007 г. | E19: Витебский | F19: 398.76
B20: 15 | C20: “Чистик” | D20: Постановление Совета Министров № 1833 от 27.12.2007 г. | E20: Витебский | F20: 299.98
B21: Ландшафтные
B22: 16 | C22: “Ельня” | D22: Постановление Совета Министров № 1833 от 27.12.2007 г. | E22: Миорский (24 198,7 га) и Шарковщинский (1 102,3 га) | F22: 25301
B23: 17 | C23: “Селява” | D23: Постановление Совета Министров № 99 от 25.02.1993 г. | E23: Чашникский | F23: 328
B24: 18 | C24: “Бабиновичский” | D24: Постановление Совета Министров № 1458 от 17.09.1998 г. | E24: Лиозненский | F24: 10547
B25: 19 | C25: “Козьянский” | D25: Постановление Совета Министров № 1765 от 11.11.1999 г. | E25: Полоцкий (5298,6 га) и Шумилинский (20761,4 га) | F25: 26060
B26: 20 | C26: “Синьша” | D26: Постановление Совета Министров № 202 от 21.03.1996 г. | E26: Россонский | F26: 13398
B27: 21 | C27: “Освейский” | D27: Постановление Совета Министров № 4 от 3.01.2000 г. | E27: Верхнедвинский | F27: 27754
B28: 22 | C28: “Красный Бор” | D28: Постановление Совета Министров № 982 от 29.07.1997 г. | E28: Верхнедвинский (169) и Россонский (34062) | F28: 34231
B29: ИТОГО | F29: =SUM(F5:F28) -> 166073.48

Sheet Республиканские памятники
B1: Памятники природы республиканского значения на 1.01.2014 г.
B2: N п/п | C2: Название геологического памятника природы республиканского значения | D2: Дата и номер решения | E2: Район | F2: Площадь, га
B3: Ботанические
B4: 1. | C4: Дуб черешчатый “Cахоновский” | D4: Постановление Минприроды N 40 от 26.04.2007 г. | E4: Верхнедвинский | F4: 0.035
B5: 2. | C5: Дуб черешчатый “Юстияновский” | D5: Постановление Минприроды N 40 от 26.04.2007 г. | E5: Верхнедвинский | F5: 0.07
B6: 3. | C6: Глубокский дендрологический сад | D6: Постановление Минприроды N 47 от 8.05.2007 г. | E6: Глубокский | F6: 8.2
B7: 4. | C7: Дуб-великан “Ситцевский” | D7: Постановление Минприроды N 40 от 26.04.2007 г. | E7: Докшицкий | F7: 0.065
B8: 5. | C8: Царь-дуб “Тадулинский” | D8: Постановление Минприроды N 40 от 26.04.2007 г. | E8: Лепельский | F8: 0.05
B9: 6. | C9: Чистая дубрава “Язненская” | D9: Постановление Минприроды N 41 от 5.05.2007 г. | E9: Миорский | F9: 22
B10: Геологические
B11: 7. | C11: Валун “Большой камень” браславский | D11: Постановление Минприроды N 25 от 19.03.2007 г. | E11: Браславский | F11: 0.00162
B12: 8. | C12: Валун “Камень в придатках” сиповичский | D12: Постановление Минприроды N 25 от 19.03.2007 г. | E12: Браславский | F12: 0.00105
B13: 9. | C13: Валун “Коровий камень” чернишковский | D13: Постановление Минприроды N 25 от 19.03.2007 г. | E13: Браславский | F13: 0.00095
B14: 10. | C14: Валун “Мартин камень” лайбунский | D14: Постановление Минприроды N 25 от 19.03.2007 г. | E14: Браславский | F14: 0.00135
B15: 11. | C15: Валун "Пастуший камень" воропащенский | D15: Постановление Минприроды N 25 от 19.03.2007 г. | E15: Браславский | F15: 0.00106
B16: 12. | C16: Валун “Чертов след” якубянский | D16: Постановление Минприроды N 25 от 19.03.2007 г. | E16: Браславский | F16: 0.00055
B17: 13. | C17: Валун “Чудодейственный камень” сташелишский | D17: Постановление Минприроды N 25 от 19.03.2007 г. | E17: Браславский | F17: 0.00029
B18: 14. | C18: Валун “Большой камень” анисимовичский | D18: Постановление Минприроды N 25 от 19.03.2007 г. | E18: Браславский | F18: 0.00065
B19: 15. | C19: Валун “Чертов камень” ричевский | D19: Постановление Минприроды N 25 от 19.03.2007 г. | E19: Браславский | F19: 0.00142
B20: 16. | C20: Валун “Большой камень” бутевский | D20: Постановление Минприроды N 25 от 19.03.2007 г. | E20: Браславский | F20: 0.00089
B21: 17. | C21: Валун “Большой камень” струстовский | D21: Постановление Минприроды N 25 от 19.03.2007 г. | E21: Браславский | F21: 0.00189
B22: 18. | C22: Валун “Большой камень” дудальский | D22: Постановление Минприроды N 25 от 19.03.2007 г. | E22: Браславский | F22: 0.00065
B23: 19. | C23: Валун “Большой камень” иказненский | D23: Постановление Минприроды N 25 от 19.03.2007 г. | E23: Браславский | F23: 0.00099
B24: 20. | C24: Валун “Большой камень” леошенский | D24: Постановление Минприроды N 25 от 19.03.2007 г. | E24: Браславский | F24: 0.00087
B25: 21. | C25: Валун “Большой камень” межанский | D25: Постановление Минприроды N 25 от 19.03.2007 г. | E25: Браславский | F25: 0.00097
B26: 22. | C26: Валун “Большой камень” огонский | D26: Постановление Минприроды N 25 от 19.03.2007 г. | E26: Браславский | F26: 0.00039
B27: 23. | C27: Валун “Большой камень” пашевичский | D27: Постановление Минприроды N 25 от 19.03.2007 г. | E27: Браславский | F27: 0.00014
B28: 24. | C28: Валун “Стародворский” | D28: Постановление Минприроды N 25 от 19.03.2007 г. | E28: Браславский | F28: 0.00084
B29: 25. | C29: Валуны “Камни Волосо” | D29: Постановление Минприроды N 25 от 19.03.2007 г. | E29: Браславский | F29: 0.0007
B30: 26. | C30: Валуны “Красногорские” | D30: Постановление Минприроды N 25 от 19.03.2007 г. | E30: Браславский | F30: 0.00097
B31: 27. | C31: Валун “Чертов камень” богдановский | D31: Постановление Минприроды N 25 от 19.03.2007 г. | E31: Браславский | F31: 0.00105
B32: 28. | C32: Валун “Большой камень” бортникский | D32: Постановление Минприроды N 21 от 18.03.2008 г. | E32: Глубокский | F32: 0.00176
B33: 29. | C33: Валун “Большой камень” плисский-1 | D33: Постановление Минприроды N 21 от 18.03.2008 г. | E33: Глубокский | F33: 0.00075
B34: 30. | C34: Валун “Большой камень” плисский-2 | D34: Постановление Минприроды N 21 от 18.03.2008 г. | E34: Глубокский | F34: 0.00075
B35: 31. | C35: Валун “Большой камень” стариновский | D35: Постановление Минприроды N 21 от 18.03.2008 г. | E35: Глубокский | F35: 0.0007
B36: 32. | C36: Валун “Габрусев камень” | D36: Постановление Минприроды N 21 от 18.03.2008 г. | E36: Глубокский | F36: 0.00187
B37: 33. | C37: Валун “Камень с рыбками” | D37: Постановление Минприроды N 21 от 18.03.2008 г. | E37: Глубокский | F37: 3e-05
B38: 34. | C38: Валун “Чертов камень” велецкий | D38: Постановление Минприроды N 21 от 18.03.2008 г. | E38: Глубокский | F38: 7e-05
B39: 35. | C39: Гряда “Горкинская” | D39: Постановление Минприроды N 21 от 18.03.2008 г. | E39: Глубокский | F39: 40
B40: 36. | C40: Холм “Голубинский” | D40: Постановление Минприроды N 21 от 18.03.2008 г. | E40: Глубокский | F40: 60
B41: 37. | C41: Холм “Мосарский” | D41: Постановление Минприроды N 21 от 18.03.2008 г. | E41: Глубокский | F41: 40
B42: 38. | C42: Валун “Скрипкинский” | D42: Постановление Минприроды N 21 от 18.03.2008 г. | E42: Городокский | F42: 0.00092
B43: 39. | C43: Валун “Хартовский” | D43: Постановление Минприроды N 21 от 18.03.2008 г. | E43: Городокский | F43: 0.00279
B44: 40. | C44: Валун “Залученский” | D44: Постановление Минприроды N 21 от 18.03.2008 г. | E44: Городокский | F44: 0.00072
B45: 41. | C45: Валун “Большой камень” кудаевский | D45: Постановление Минприроды N 21 от 18.03.2008 г. | E45: Оршанский | F45: 0.00345
B46: 42. | C46: Валун “Захаров камень” | D46: Постановление Минприроды N 21 от 18.03.2008 г. | E46: Оршанский | F46: 0.00062
B47: 43. | C47: Валун “Пашинский-1” | D47: Постановление Минприроды N 21 от 18.03.2008 г. | E47: Оршанский | F47: 0.00053
B48: 44. | C48: Валун “Пашинский-2” | D48: Постановление Минприроды N 21 от 18.03.2008 г. | E48: Оршанский | F48: 0.00065
B49: 45. | C49: Валун “Ромальдовский” | D49: Постановление Минприроды N 21 от 18.03.2008 г. | E49: Оршанский | F49: 0.00111
B50: 46. | C50: Гряда “Орешкинская” | D50: Постановление Минприроды N 21 от 18.03.2008 г. | E50: Оршанский | F50: 40
B51: 47. | C51: Обнажение “Адров” | D51: Постановление Минприроды N 21 от 18.03.2008 г. | E51: Оршанский | F51: 0.005
B52: 48. | C52: Обнажение “Кобеляки” | D52: Постановление Минприроды N 21 от 18.03.2008 г. | E52: Оршанский | F52: 30
B53: 49. | C53: Обнажение “Орша” | D53: Постановление Минприроды N 21 от 18.03.2008 г. | E53: Оршанский | F53: 0.025
B54: 50. | C54: Обнажение Пашино” | D54: Постановление Минприроды N 21 от 18.03.2008 г. | E54: Оршанский | F54: 20
B55: 51. | C55: Рудаков ров | D55: Постановление Минприроды N 21 от 18.03.2008 г. | E55: Оршанский | F55: 80
B56: 52. | C56: Холм “Ключниковский” | D56: Постановление Минприроды N 21 от 18.03.2008 г. | E56: Оршанский | F56: 90
B57: 53. | C57: Холм “Медведевский” | D57: Постановление Минприроды N 21 от 18.03.2008 г. | E57: Оршанский | F57: 100
B58: 54. | C58: Валун “Святицкий” | D58: Постановление Минприроды N 25 от 19.03.2007 г. | E58: Полоцкий | F58: 0.015
B59: 55. | C59: Скопление валунов “Яново” | D59: Постановление Минприроды N 25 от 19.03.2007 г. | E59: Полоцкий | F59: 4
B60: 56. | C60: Холм “Волотовка” | D60: Постановление Минприроды N 25 от 19.03.2007 г. | E60: Полоцкий | F60: 19
B61: 57. | C61: Холм “Гора Маяк” | D61: Постановление Минприроды N 25 от 19.03.2007 г. | E61: Поставский | F61: 2.5434
B62: 58. | C62: Холм “Гора Бояровщина” | D62: Постановление Минприроды N 25 от 19.03.2007 г. | E62: Поставский | F62: 8.6526
B63: 59. | C63: Холм “Гора Лысая” | D63: Постановление Минприроды N 25 от 19.03.2007 г. | E63: Поставский | F63: 2.2687
B64: 60. | C64: Валун “Большой камень” завлечанский | D64: Постановление Минприроды N 25 от 19.03.2007 г. | E64: Поставский | F64: 0.00171
B65: 61. | C65: Валун “Чертов камень” соболковский | D65: Постановление Минприроды N 25 от 19.03.2007 г. | E65: Поставский | F65: 0.00132
B66: 62. | C66: Валун “Большой камень” лодосский | D66: Постановление Минприроды N 25 от 19.03.2007 г. | E66: Поставский | F66: 0.00102
B67: 63. | C67: Валун “Большой камень” мягунский | D67: Постановление Минприроды N 25 от 19.03.2007 г. | E67: Поставский | F67: 0.00086
B68: 64. | C68: Валун “Дырявый камень” каптарунский | D68: Постановление Минприроды N 25 от 19.03.2007 г. | E68: Поставский | F68: 0.00045
B69: 65. | C69: Валун “Чертов камень” (“Кравец”) | D69: Постановление Минприроды N 25 от 19.03.2007 г. | E69: Сенненский | F69: 0.0062
B70: 66. | C70: Валун “Чертов камень” | D70: Постановление Минприроды N 25 от 19.03.2007 г. | E70: Сенненский | F70: 0.0015
B71: 67. | C71: Валун “Перун” | D71: Постановление Минприроды N 25 от 19.03.2007 г. | E71: Сенненский | F71: 0.0016
B72: 68. | C72: Валун “Клин” | D72: Постановление Минприроды N 25 от 19.03.2007 г. | E72: Сенненский | F72: 0.0012
B73: 69. | C73: Валун “Сорочинский” | D73: Постановление Минприроды N 25 от 19.03.2007 г. | E73: Ушачский | F73: 0.0003
B74: 70. | C74: Валун “Глыбочанский” | D74: Постановление Минприроды N 25 от 19.03.2007 г. | E74: Ушачский | F74: 0.00046
B75: 71. | C75: Валуны “Березовские” | D75: Постановление Минприроды N 25 от 19.03.2007 г. | E75: Ушачский | F75: 0.00139
B76: 72. | C76: Валун “Большой камень” | D76: Постановление Минприроды N 25 от 19.03.2007 г. | E76: Шумилинский | F76: 0.0062
B77: 73. | C77: “Плиговский валун” | D77: Постановление Минприроды N 17 от 12.05.2003 г. | E77: Шумилинский | F77: 0.0044
B78: 74. | C78: “Полтевский валун” | D78: Постановление Минприроды N 17 от 12.05.2003 г. | E78: Шумилинский | F78: 0.0011
B79: 75. | C79: “Морозовский валун” | D79: Постановление Минприроды N 17 от 12.05.2003 г. | E79: Шумилинский | F79: 0.001
B80: 76. | C80: “Шевекинский валун” | D80: Постановление Минприроды N 17 от 12.05.2003 г. | E80: Шумилинский | F80: 0.0006
B81: Итого | F81: =SUM(F4:F80) -> 566.99702

Sheet Местные заказники
B2: Заказники местного значения в Витебской области по состоянию на 01.01.2014 г.
B3: № | C3: Наименование | D3: Кем создан, номер и дата решения | E3: Район | F3: Площадь, га
B4: Ландшафтные
B5: 1 | C5: “Дядок” | D5: Решение Глубокского райисполкома № 253 от 09.03.2009 г. | E5: Глубокский | F5: 118.7
B6: 2 | C6: “Голубицкая пуща” | D6: Решение Глубокского райисполкома № 224 от 23.02.2012 г. | E6: Глубокский | F6: 2302.8
B7: 3 | C7: “Вышедская низина” | D7: Решение Городокского райисполкома №419 от 21.04.2009 г. | E7: Городокский | F7: 2724.4
B8: 4 | C8: “Рудня” | D8: Решение Городокского райисполкома № 350 от 30.11.1995 г. | E8: Городокский | F8: 400
B9: 5 | C9: “Пышногоры” | D9: Решение Лепельского горисполкома № 292 от 26.05.2004 г. | E9: Лепельский | F9: 708
B10: 6 | C10: “Межевская озовая гряда” | D10: Решение Россонского райисполкома № 723 от 10.09.2009 г. | E10: Россонский | F10: 111.65
B11: Биологические
B12: 7 | C12: “Витебский” | D12: Решение Витебского райисполкома № 343 от 3.03.2009 г. | E12: Витебский | F12: 158
B13: 8 | C13: “Придвинье” | D13: Решение Витебского райисполкома № 343 от 3.03.2009 г. | E13: Витебский | F13: 321
B14: 9 | C14: “Большая Лука” | D14: Решение Витебского райисполкома № 667 от 30.05.2012 г. | E14: Витебский | F14: 481.76
B15: 10 | C15: “Дымовщина” | D15: Решение Витебского райисполкома № 667 от 30.05.2012 г. | E15: Витебский | F15: 157.83
B16: 11 | C16: “Чертова борода” | D16: Решение Витебского райисполкома № 97 от 29.01.2011 г. | E16: Витебский | F16: 58.3
B17: 12 | C17: “Холмогоры” | D17: Решение Глубокского райисполкома № 224 от 23.02.2012 г. | E17: Глубокский | F17: 176
B18: 13 | C18: “Яново” | D18: Решение Городокского райисполкома № 350 от 30.11.1995 г. | E18: Городокский | F18: 200
B19: 14 | C19: “Сурмино” | D19: Решение Городокского райисполкома № 1462 от 19.12.2007 г. | E19: Городокский | F19: 2294
B20: 15 | C20: “Езерище” | D20: Решение Городокского райисполкома № 1464 от 19.12.2007 г. | E20: Городокский | F20: 1700
B21: 16 | C21: “Ловать” | D21: Решение Городокского райисполкома № 270 27.07.1997 г. | E21: Городокский | F21: 6600
B22: 17 | C22: “Зуйка” | D22: Решение Докшицкого райисполкома № 1584 от 27.11.2008 г. | E22: Докшицкий | F22: 23
B23: 18 | C23: “Озеры” | D23: Решение Дубровенского райисполкома № 999 от 08.12.2008г. | E23: Дубровенский | F23: 63
B24: 19 | C24: “Лынтупский” | D24: Решение Поставского райисполкома № 938 от 14.09.2009 г. | E24: Поставский | F24: 112.2
B25: 20 | C25: “Медвежий лук” | D25: Решение Толочинского райисполкома № 442 от 24.06.2008 г. | E25: Толочинский | F25: 31.6
B26: 21 | C26: “Липники” | D26: Решение Чашникского райисполкома № 318 от 8.11.1999 г. | E26: Чашницкий | F26: 1.3
B27: 22 | C27: “Зеленое Лядо” | D27: Решение Чашникского райисполкома № 318 от 8.11.1999 г. | E27: Чашницкий | F27: 86.2
B28: 23 | C28: “Сосняги” | D28: Решение Чашникского райисполкома № 318 от 8.11.1999 г. | E28: Чашницкий | F28: 5.1
B29: Гидрологические
B30: 24 | C30: “Соржицкий Мох” | D30: Решение Бешенковичского райисполкома № 1012 от 10.09.2010 г. | E30: Бешенковичский | F30: 864.3
B31: 25 | C31: “Лапы” | D31: Решение Бешенковичского райисполкома № 1012 от 10.09.2010 г. | E31: Бешенковичский | F31: 62
B32: 26 | C32: “Гурбы” | D32: Решение Глубокского райисполкома № 224 от 23.02.2012 г. | E32: Глубокский | F32: 418.4
B33: 27 | C33: “Тиостенский” | D33: Решение Городокского райисполкома № 419 от 21.04.2009 г. | E33: Городокский | F33: 557.68
B34: 28 | C34: “Виржи” | D34: Решение Докшицкого райисполкома № 1584 от 27.11.2008 г. | E34: Докшицкий | F34: 695
B35: 29 | C35: “Отрубок” | D35: Решение Докшицкого райисполкома № 1584 от 27.11.2008 г. | E35: Докшицкий | F35: 100
B36: 30 | C36: “Вереньки” | D36: Решение Докшицкого райисполкома № 1584 от 27.11.2008 г. | E36: Докшицкий | F36: 120
B37: 31 | C37: “Заборье” | D37: Решение Докшицкого райисполкома № 1584 от 27.11.2008 г. | E37: Докшицкий | F37: 910
B38: 32 | C38: “Подомхи” | D38: Решение Докшицкого райисполкома № 1584 от 27.11.2008 г. | E38: Докшицкий | F38: 264
B39: 33 | C39: “Чечуки” | D39: Решение Докшицкого райисполкома № 1584 от 27.11.2008 г. | E39: Докшицкий | F39: 334
B40: 34 | C40: “Жуковское” | D40: Решение Дубровенского райисполкома № 999 от 08.12.2008г. | E40: Дубровенский | F40: 263
B41: 35 | C41: “Пунище” | D41: Решение Дубровенского райисполкома № 999 от 08.12.2008г. | E41: Дубровенский | F41: 63
B42: 36 | C42: “Осинторфский” | D42: Решение Дубровенского райисполкома №349 от 22.10.1993г. | E42: Дубровенский | F42: 5920
B43: 37 | C43: “Какисино” | D43: Решение Лепельского райисполкома № 1203 от 19.12.2008 г. | E43: Лепельский | F43: 78
B44: 38 | C44: “Жада” (Стречно) | D44: Решение Миорского райисполкома № 169 от 31.03.2000 г. | E44: Миорский | F44: 2300
B45: 39 | C45: “Замошанский Мох” | D45: Решение Сенненского райисполкома № 85 от 29.02.1996 г. | E45: Сенненский | F45: 700
B46: 40 | C46: “Капланский Мох” | D46: Решение Сенненского райисполкома № 85 от 29.02.1996 г. | E46: Сенненский | F46: 1250
B47: 41 | C47: “Гуринское” | D47: Решение Сенненского райисполкома № 85 от 29.02.1996 г. | E47: Сенненский | F47: 141
B48: 42 | C48: “Скрипутёво” | D48: Решение Толочинского райисполкома № 441 от 24.06.2008 г. | E48: Толочинский | F48: 27
B49: 43 | C49: “Черствятский” | D49: Решение Ушачского райисполкома № 843 от 28.10.2008 г. | E49: Ушачский | F49: 72
B50: 44 | C50: “Глыбочанский” | D50: Решение Ушачского райисполкома № 843 от 28.10.2008 г. | E50: Ушачский | F50: 270
B51: 45 | C51: Торфяной заказник “Лесное” | D51: Решение Шарковщинского райисполкома № 108 от 24.08.1994 г. | E51: Шарковщинский | F51: 4088.8
B52: Геологические
B53: 46 | C53: “Янельская котловина” | D53: Решение Браславского райисполкома № 234 от 12.05.2000 г. | E53: Браславский | F53: 150
B54: 47 | C54: “Малиновщинские возвышенности” | D54: Решение Глубокского райисполкома № 224 от 23.02.2012 г. | E54: Глубокский | F54: 372.8
B55: 48 | C55: Родник “Криница Святого Яна” | D55: Решение Миорского райисполкома № 803 от 23.09.2011 г. | E55: Миорский | F55: 250
B56: 49 | C56: “Копцевская озовая гряда” | D56: Решение Миорского райисполкома № 803 от 23.09.2011 г. | E56: Миорский | F56: 210
B57: 50 | C57: “Волчая гора” | D57: Решение Миорского райисполкома № 803 от 23.09.2011 г. | E57: Миорский | F57: 120
B58: 51 | C58: “Белаазерскія выдмы” | D58: Решение Полоцкого райисполкома № 107 от 18.02.2011 г. | E58: Полоцкий | F58: 2900
B59: 52 | C59: “Града замак Глінскі” | D59: Решение Полоцкого райисполкома № 107 от 18.02.2011 г. | E59: Полоцкий | F59: 580
B60: 53 | C60: “Гара гарада Гамоўшчынская” | D60: Решение Полоцкого райисполкома № 107 от 18.02.2011 г. | E60: Полоцкий | F60: 195
B61: 54 | C61: “Найвышейшае месца Полаччыны рабчонкі” | D61: Решение Полоцкого райисполкома № 107 от 18.02.2011 г. | E61: Полоцкий | F61: 140
B62: 55 | C62: “Полесские пригорки” | D62: Решение Поставского райисполкома № 938 от 14.09.2009 г. | E62: Поставский | F62: 150
B63: 56 | C63: “Сергеевичские холмы” | D63: Решение Поставского райисполкома № 938 от 14.09.2009 г. | E63: Поставский | F63: 150
B64: Водно-болотные
B65: 57 | C65: “Клетище” | D65: Решение Лепельского райисполкома № 1203 от 19.12.2008 г. | E65: Лепельский | F65: 387
B66: 58 | C66: “Вилейты” | D66: Решение Постаского райисполкома № 440 от 20.05.2013 г. | E66: Чашницкий | F66: 5101
B67: 59 | C67: “Хвощевое” | D67: Решение Чашникского райисполкома № 73 от 8.03.1995 г. | E67: Чашницкий | F67: 121.9
B68: 60 | C68: “Воронуха” | D68: Решение Шумилинского райисполкома № 821 от 03.12.2012 г. | E68: Шумилинский | F68: 775
B69: ИТОГО | F69: =SUM(F5:F68) -> 49935.72

Sheet Местные памятники
B2: Памятники природы местного значения в Витебской области по состоянию на 01.01.2014 г.
B3: № п/п | C3: Наименование | D3: Кем создан, номер и дата решения | E3: Район | F3: Площадь, га
B4: Ботанические
B5: 1 | C5: “Бешенковичский дворцово-парковый ансамбль” | D5: Решение Бешенковичского райисполкома № 1012 от 10.09.2010 г. | E5: Бешенковичский | F5: 9.2
B6: 2 | C6: “Бочейковсий усадебно-парковый ансамбль” | D6: Решение Бешенковичского райисполкома № 1012 от 10.09.2010 г. | E6: Бешенковичский | F6: 10
B7: 3 | C7: “Парк “Соломинка” в н.п. Добригоры” | D7: Решение Бешенковичского райисполкома № 1012 от 10.09.2010 г. | E7: Бешенковичский | F7: 8
B8: 4 | C8: “Усадебный комплекс в н.п. Двор Низголово” | D8: Решение Бешенковичского райисполкома № 1012 от 10.09.2010 г. | E8: Бешенковичский | F8: 7.5
B9: 5 | C9: Старинный парк “Сарьянский” | D9: Решение Верхнедвинского райисполкома № 523 от 10.06.2011 г. | E9: Верхнедвинский | F9: 20
B10: 6 | C10: Старинный парк “Освейский” | D10: Решение Верхнедвинского райисполкома № 523 от 10.06.2011 г. | E10: Верхнедвинский | F10: 23
B11: 7 | C11: Городской парк Верхнедвинска | D11: Решение Верхнедвинского райисполкома № 523 от 10.06.2011 г. | E11: Верхнедвинский | F11: 14.2
B12: 8 | C12: Дубовые насаждения | D12: Решение Верхнедвинского райисполкома № 523 от 10.06.2011 г. | E12: Верхнедвинский | F12: 56
B13: 9 | C13: Дубовые насаждения | D13: Решение Верхнедвинского райисполкома № 523 от 10.06.2011 г. | E13: Верхнедвинский | F13: 32
B14: 10 | C14: Дубовые насаждения | D14: Решение Верхнедвинского райисполкома № 523 от 10.06.2011 г. | E14: Верхнедвинский | F14: 62
B15: 11 | C15: Дендропарк Верхнедвинского лесхоза | D15: Решение Верхнедвинского райисполкома № 523 от 10.06.2011 г. | E15: Верхнедвинский | F15: 6.3
B16: 12 | C16: Лужеснянский дендропарк | D16: Решение Витебского райисполкома № 667 от 30.05.2012 г. | E16: Витебский | F16: 8.78
B17: 13 | C17: Рубовский | D17: Решение Витебского райисполкома № 1075 от 20.09.2005 г. | E17: Витебский | F17: 2.1
B18: 14 | C18: Парк “Залесье” | D18: Решение Глубокского райисполкома № 224 от 23.02.2012 г. | E18: Глубокский | F18: 9
B19: 15 | C19: Дуб-великан “Волат” | D19: Решение Городокского райисполкома № 193 от 7.07.1993 г. | E19: Городокский | F19: 2
B20: 16 | C20: Усадьба “Двухполье” | D20: Решение Городокского райисполкома № 486 от 22.09.1999 г. | E20: Городокский | F20: 2
B21: 17 | C21: Городской парк | D21: Решение Городокского райисполкома № 486 от 22.09.1999 г. | E21: Городокский | F21: 1.5
B22: 18 | C22: Городской парк “Полуостров” | D22: Решение Миорского райисполкома № 803 от 23.09.2011 г. | E22: Миорский | F22: 4.3
B23: 19 | C23: “Межево” | D23: Решение Оршанского райисполкома № 1101 от 11.12.2009 г. | E23: Оршанский | F23: 8
B24: 20 | C24: “Высокое” | D24: Решение Оршанского райисполкома № 1101 от 11.12.2009 г. | E24: Оршанский | F24: 4.7
B25: 21 | C25: “Дендросад” | D25: Решение Оршанского райисполкома № 214 от 15.09.1992 г. | E25: Оршанский | F25: 6
B26: 22 | C26: Рацевский парк | D26: Решение Толочинского райисполкома № 443 от 05.10.1999 г. | E26: Толочинский | F26: 10
B27: 23 | C27: Юзефполье | D27: Решение Толочинского райисполкома № 444 от 05.10.1999 г. | E27: Толочинский | F27: 7
B28: 24 | C28: “Сосна обыкновенная” | D28: Решение Шумилинского райисполкома № 821 от 03.12.2012 г. | E28: Шумилинский | F28: 0.0002
B29: 25 | C29: “Сосна обыкновенная” | D29: Решение Шумилинского райисполкома № 821 от 03.12.2012 г. | E29: Шумилинский | F29: 0.0002
B30: 26 | C30: “Осина (тополь дрожащий)” | D30: Решение Шумилинского райисполкома № 821 от 03.12.2012 г. | E30: Шумилинский | F30: 0.0002
B31: 27 | C31: “Липа мелколистная” | D31: Решение Шумилинского райисполкома № 821 от 03.12.2012 г. | E31: Шумилинский | F31: 0.0002
B32: 28 | C32: “Дубовая аллея” | D32: Решение Шумилинского райисполкома № 821 от 03.12.2012 г. | E32: Шумилинский | F32: 0.1155
B33: Геологические
B34: 29 | C34: “Сарьянская низменность” | D34: Решение Верхнедвинского райисполкома № 523 от 10.06.2011 г. | E34: Верхнедвинский | F34: 0.8
B35: 30 | C35: “Освейская возвыщенность” | D35: Решение Верхнедвинского райисполкома № 523 от 10.06.2011 г. | E35: Верхнедвинский | F35: 0.39
B36: 31 | C36: “Росицкая низменность” | D36: Решение Верхнедвинского райисполкома № 523 от 10.06.2011 г. | E36: Верхнедвинский | F36: 0.29
B37: 32 | C37: “Стрешницкий массив возвышенностей” | D37: Решение Верхнедвинского райисполкома № 523 от 10.06.2011 г. | E37: Верхнедвинский | F37: 0.24
B38: 33 | C38: “Городиловская гора” | D38: Решение Верхнедвинского райисполкома № 523 от 10.06.2011 г. | E38: Верхнедвинский | F38: 0.16
B39: 34 | C39: “Освейская долина прорыва” | D39: Решение Верхнедвинского райисполкома № 523 от 10.06.2011 г. | E39: Верхнедвинский | F39: 0.13
B40: 35 | C40: “Большой камень Харабровский” | D40: Решение Верхнедвинского райисполкома № 1002 от 29.12.2008 г. | E40: Верхнедвинский | F40: 0.004
B41: 36 | C41: “Большой камень Дерновичский” | D41: Решение Верхнедвинского райисполкома № 1002 от 29.12.2008 г. | E41: Верхнедвинский | F41: 0.005
B42: 37 | C42: “Большой камень Перекский” | D42: Решение Верхнедвинского райисполкома № 1002 от 29.12.2008 г. | E42: Верхнедвинский | F42: 0.005
B43: 38 | C43: “Сарьянский большой камень” | D43: Решение Верхнедвинского райисполкома № 1002 от 29.12.2008 г. | E43: Верхнедвинский | F43: 0.006
B44: 39 | C44: “Суражские обнажения” | D44: Решение Витебского райисполкома № 667 от 30.05.2012 г. | E44: Витебский | F44: 7.85
B45: 40 | C45: “Ковалевская гора” | D45: Решение Глубокского райисполкома № 224 от 23.02.2012 г. | E45: Глубокский | F45: 156.6
B46: 41 | C46: “Горвацкий кам” | D46: Решение Глубокского райисполкома № 224 от 23.02.2012 г. | E46: Глубокский | F46: 60
B47: 42 | C47: “Зябковский пригорок” | D47: Решение Глубокского райисполкома № 224 от 23.02.2012 г. | E47: Глубокский | F47: 13
B48: 43 | C48: “Медведковский оз” | D48: Решение Глубокского райисполкома № 224 от 23.02.2012 г. | E48: Глубокский | F48: 0.1
B49: 44 | C49: “Большой камень Давыдковский” | D49: Решение Глубокского райисполкома № 224 от 23.02.2012 г. | E49: Глубокский | F49: 0.0006
B50: 45 | C50: “Камень Прошковский” | D50: Решение Глубокского райисполкома № 224 от 23.02.2012 г. | E50: Глубокский | F50: 0.0002
B51: 46 | C51: “Камень Голубицкий” | D51: Решение Глубокского райисполкома № 224 от 23.02.2012 г. | E51: Глубокский | F51: 0.0006
B52: 47 | C52: “Камень Припернянский” | D52: Решение Глубокского райисполкома № 224 от 23.02.2012 г. | E52: Глубокский | F52: 0.0006
B53: 48 | C53: Валуны | D53: Решение Городокского райисполкома № 18 от 28.01.1993 г. | E53: Городокский | F53: 0.01
B54: 49 | C54: Валуны | D54: Решение Городокского райисполкома № 18 от 28.01.1993 г. | E54: Городокский | F54: 0.01
B55: 50 | C55: “Удебненская гряда” | D55: Решение Городокского райисполкома № 350 от 30.11.1995 г. | E55: Городокский | F55: 1
B56: 51 | C56: “Пальминский большой камень” | D56: Решение Городокского райисполкома № 350 от 30.11.1995 г. | E56: Городокский | F56: 0.01
B57: 52 | C57: “Москаленятский валун” | D57: Решение Городокского райисполкома № 350 от 30.11.1995 г. | E57: Городокский | F57: 0.01
B58: 53 | C58: “Чернявский валун” | D58: Решение Городокского райисполкома № 350 от 30.11.1995 г. | E58: Городокский | F58: 0.01
B59: 54 | C59: “Яновский каменный кряж и валун” | D59: Решение Городокского райисполкома № 350 от 30.11.1995 г. | E59: Городокский | F59: 0.01
B60: 55 | C60: “Мининские валуны” | D60: Решение Городокского райисполкома № 350 от 30.11.1995 г. | E60: Городокский | F60: 0.01
B61: 56 | C61: “Гузовские валуны” | D61: Решение Городокского райисполкома № 350 от 30.11.1995 г. | E61: Городокский | F61: 0.01
B62: 57 | C62: “Кожемякинские валуны” | D62: Решение Городокского райисполкома № 350 от 30.11.1995 г. | E62: Городокский | F62: 0.01
B63: 58 | C63: “Филимоновские валуны” | D63: Решение Городокского райисполкома № 350 от 30.11.1995 г. | E63: Городокский | F63: 0.01
B64: 59 | C64: “Новобелицкие валуны” | D64: Решение Городокского райисполкома № 350 от 30.11.1995 г. | E64: Городокский | F64: 0.01
B65: 60 | C65: “Киселёвские валуны” | D65: Решение Городокского райисполкома № 350 от 30.11.1995 г. | E65: Городокский | F65: 0.01
B66: 61 | C66: “Горянская гряда” | D66: Решение Миорского райисполкома № 803 от 23.09.2011 г. | E66: Миорский | F66: 100
B67: 62 | C67: “Буяновский погурок” | D67: Решение Миорского райисполкома № 803 от 23.09.2011 г. | E67: Миорский | F67: 90
B68: 63 | C68: “Новополоцкие погурки” | D68: Решение Миорского райисполкома № 803 от 23.09.2011 г. | E68: Миорский | F68: 80
B69: 64 | C69: “Тарелочный камень Язненский” | D69: Решение Миорского райисполкома № 803 от 23.09.2011 г. | E69: Миорский | F69: 0.01
B70: 65 | C70: “Бертовщинский Большой Камень” | D70: Решение Миорского райисполкома № 803 от 23.09.2011 г. | E70: Миорский | F70: 0.01
B71: 66 | C71: “Березовский Большой Камень” | D71: Решение Миорского райисполкома № 803 от 23.09.2011 г. | E71: Миорский | F71: 0.01
B72: 67 | C72: “Луповщинский Большой Камень” | D72: Решение Миорского райисполкома № 803 от 23.09.2011 г. | E72: Миорский | F72: 0.01
B73: 68 | C73: “Мозылевский Большой Камень” | D73: Решение Миорского райисполкома № 803 от 23.09.2011 г. | E73: Миорский | F73: 0.01
B74: 69 | C74: “Янопольский Большой Камень” | D74: Решение Миорского райисполкома № 803 от 23.09.2011 г. | E74: Миорский | F74: 0.01
B75: 70 | C75: “Гирьятский Большой Камень” | D75: Решение Миорского райисполкома № 803 от 23.09.2011 г. | E75: Миорский | F75: 0.01
B76: 71 | C76: “Симков Кладовой Камень” | D76: Решение Миорского райисполкома № 803 от 23.09.2011 г. | E76: Миорский | F76: 0.01
B77: 72 | C77: “Ражневский Валун” | D77: Решение Миорского райисполкома № 803 от 23.09.2011 г. | E77: Миорский | F77: 0.01
B78: 73 | C78: “Перебродский Валун Следовик” | D78: Решение Миорского райисполкома № 803 от 23.09.2011 г. | E78: Миорский | F78: 0.01
B79: 74 | C79: Родник “Святая вода Дехтяревская” | D79: Решение Миорского райисполкома № 803 от 23.09.2011 г. | E79: Миорский | F79: 1.5
B80: 75 | C80: Кублищинский Большой Камень | D80: Решение Миорского райисполкома № 803 от 23.09.2011 г. | E80: Миорский | F80: 0.01
B81: 76 | C81: Новопогостский Большой Камень | D81: Решение Миорского райисполкома № 803 от 23.09.2011 г. | E81: Миорский | F81: 0.01
B82: 77 | C82: Родник “Криница” | D82: Решение Миорского райисполкома № 803 от 23.09.2011 г. | E82: Миорский | F82: 0.01
B83: 78 | C83: “Корлиновские холмы” | D83: Решение Оршанского райисполкома № 277 от 18.03.2011 г. | E83: Оршанский | F83: 25
B84: 79 | C84: “Адровские овраги” | D84: Решение Оршанского райисполкома № 277 от 18.03.2011 г. | E84: Оршанский | F84: 1.5
B85: 80 | C85: “Краснохарьковская долина” | D85: Решение Оршанского райисполкома № 277 от 18.03.2011 г. | E85: Оршанский | F85: 5
B86: 81 | C86: “Кобелякские пороги” | D86: Решение Оршанского райисполкома № 277 от 18.03.2011 г. | E86: Оршанский | F86: 3.7 | H86: Решение Оршанского райисполкома № 184 от 09.04.1996 г. | I86: Оршанский | J86: 1.5
B87: 82 | C87: “Алантьевская гряда” | D87: Решение Оршанского райисполкома № 277 от 18.03.2011 г. | E87: Оршанский | F87: 90.5
B88: 83 | C88: “Гарадзецкія пагоркі Туржецкія | D88: Решение Полоцкого райисполкома № 107 от 18.02.2011 г. | E88: Полоцкий | F88: 80
B89: 84 | C89: “Гара падлозенка Гомельская” | D89: Решение Полоцкого райисполкома № 107 от 18.02.2011 г. | E89: Полоцкий | F89: 32
B90: 85 | C90: “Гара гарадзішча Званская” | D90: Решение Полоцкого райисполкома № 107 от 18.02.2011 г. | E90: Полоцкий | F90: 18
B91: 86 | C91: “Гара замак Вараніцкая” | D91: Решение Полоцкого райисполкома № 107 от 18.02.2011 г. | E91: Полоцкий | F91: 13
B92: 87 | C92: “Гара гарада Замошская” | D92: Решение Полоцкого райисполкома № 107 от 18.02.2011 г. | E92: Полоцкий | F92: 8.5
B93: 88 | C93: “Вялікі камень Бікульніцкі” | D93: Решение Полоцкого райисполкома № 107 от 18.02.2011 г. | E93: Полоцкий | F93: 0.015
B94: 89 | C94: “Вялікі камень Косараўскі” | D94: Решение Полоцкого райисполкома № 107 от 18.02.2011 г. | E94: Полоцкий | F94: 0.015
B95: 90 | C95: “Пярун камень Полацкі” | D95: Решение Полоцкого райисполкома № 107 от 18.02.2011 г. | E95: Полоцкий | F95: 0.015
B96: 91 | C96: “Вялікі камень Глінскі” | D96: Решение Полоцкого райисполкома № 107 от 18.02.2011 г. | E96: Полоцкий | F96: 0.015
B97: 92 | C97: “Вялікі камень Туржэцкі” | D97: Решение Полоцкого райисполкома № 107 от 18.02.2011 г. | E97: Полоцкий | F97: 0.015
B98: 93 | C98: “Святая студня (святуха) Вуглаўская” | D98: Решение Полоцкого райисполкома № 107 от 18.02.2011 г. | E98: Полоцкий | F98: 2
B99: 94 | C99: “Барысаў камень Полацкі” | D99: Решение Полоцкого райисполкома № 214 от 23.05.2001 г. | E99: Полоцкий | F99: 0.015
B100: 95 | C100: “Гора Большая” | D100: Решение Поставского райисполкома № 938 от 14.09.2009 г. | E100: Поставский | F100: 16
B101: 96 | C101: “Жуперская Гряда” | D101: Решение Поставского райисполкома № 938 от 14.09.2009 г. | E101: Поставский | F101: 10
B102: 97 | C102: “Бородинский Пригорок” | D102: Решение Поставского райисполкома № 938 от 14.09.2009 г. | E102: Поставский | F102: 30
B103: 98 | C103: “Чернецкий пригорок” | D103: Решение Поставского райисполкома № 938 от 14.09.2009 г. | E103: Поставский | F103: 20
B104: 99 | C104: “Спорицкая ледниковая ложбина” | D104: Решение Поставского райисполкома № 938 от 14.09.2009 г. | E104: Поставский | F104: 1450
B105: 100 | C105: “Карагач” | D105: Решение Поставского райисполкома № 938 от 14.09.2009 г. | E105: Поставский | F105: 500
B106: 101 | C106: “Саранчанские гряды” | D106: Решение Поставского райисполкома № 938 от 14.09.2009 г. | E106: Поставский | F106: 350
B107: 102 | C107: “Гора Гороватка” | D107: Решение Поставского райисполкома № 938 от 14.09.2009 г. | E107: Поставский | F107: 2
B108: 103 | C108: “Большой камень Трапшевицкий” | D108: Решение Поставского райисполкома № 938 от 14.09.2009 г. | E108: Поставский | F108: 0.01
B109: 104 | C109: “Большой камень Зыбалишкинский” | D109: Решение Поставского райисполкома № 938 от 14.09.2009 г. | E109: Поставский | F109: 0.01
B110: 105 | C110: “Большой камень Чашковщинский” | D110: Решение Поставского райисполкома № 938 от 14.09.2009 г. | E110: Поставский | F110: 0.01
B111: 106 | C111: “Большой камень Камайский” | D111: Решение Поставского райисполкома № 938 от 14.09.2009 г. | E111: Поставский | F111: 0.01
B112: 107 | C112: “Большой камень Казнадеюшский” | D112: Решение Поставского райисполкома № 938 от 14.09.2009 г. | E112: Поставский | F112: 0.01
B113: 108 | C113: “Озовая гряда Рыли” | D113: Решение Россонского райисполкома № 1063 от 31.12.2009 г. | E113: Россонский | F113: 48
B114: 109 | C114: “Гора Гвоздиха” | D114: Решение Россонского райисполкома № 1063 от 31.12.2009 г. | E114: Россонский | F114: 50
B115: 110 | C115: “Большой камень Россонский” | D115: Решение Россонского райисполкома № 1063 от 31.12.2009 г. | E115: Россонский | F115: 0.00162
B116: 111 | C116: “Большой камень Глазковский” | D116: Решение Россонского райисполкома № 1063 от 31.12.2009 г. | E116: Россонский | F116: 0.00187
B117: 112 | C117: “Большой камень Фоминский” | D117: Решение Россонского райисполкома № 1063 от 31.12.2009 г. | E117: Россонский | F117: 0.00167
B118: 113 | C118: “Локтевский большой камень” | D118: Решение Россонского райисполкома № 1063 от 31.12.2009 г. | E118: Россонский | F118: 0.00102
B119: 114 | C119: “Межновский большой камень” | D119: Решение Россонского райисполкома № 1063 от 31.12.2009 г. | E119: Россонский | F119: 0.00119
B120: 115 | C120: “Грушин камень Заозерский” | D120: Решение Россонского райисполкома № 1063 от 31.12.2009 г. | E120: Россонский | F120: 0.00086
B121: 116 | C121: “Валун Лапещинский” | D121: Решение Россонского райисполкома № 1063 от 31.12.2009 г. | E121: Россонский | F121: 0.00074
B122: 117 | C122: “Кедровский камень Крестовский” | D122: Решение Россонского райисполкома № 1063 от 31.12.2009 г. | E122: Россонский | F122: 0.00074
B123: 118 | C123: “Лидин камень Гречушынский” | D123: Решение Россонского райисполкома № 1063 от 31.12.2009 г. | E123: Россонский | F123: 0.00072
B124: 119 | C124: “Валун Высотковский” | D124: Решение Россонского райисполкома № 1063 от 31.12.2009 г. | E124: Россонский | F124: 0.00089
B125: 120 | C125: “Валун Заозерский” | D125: Решение Россонского райисполкома № 1063 от 31.12.2009 г. | E125: Россонский | F125: 0.0008
B126: 121 | C126: “Пилипенский большой камень” | D126: Решение Россонского райисполкома № 1063 от 31.12.2009 г. | E126: Россонский | F126: 0.00079
B127: 122 | C127: “Избищенский большой камень” | D127: Решение Россонского райисполкома № 1063 от 31.12.2009 г. | E127: Россонский | F127: 0.00071
B128: 123 | C128: “Валун Гречушинский” | D128: Решение Россонского райисполкома № 1063 от 31.12.2009 г. | E128: Россонский | F128: 0.00061
B129: 124 | C129: “Цыбульский камень Заозерский” | D129: Решение Россонского райисполкома № 1063 от 31.12.2009 г. | E129: Россонский | F129: 0.000681
B130: 125 | C130: “Сырный камень Россонский” | D130: Решение Россонского райисполкома № 1063 от 31.12.2009 г. | E130: Россонский | F130: 0.00036
B131: 126 | C131: “Шатанский камень Россонский” | D131: Решение Россонского райисполкома № 1063 от 31.12.2009 г. | E131: Россонский | F131: 0.00025
B132: 127 | C132: Валун “Змеев камень” | D132: Решение Чашникского райисполкома № 15 от 4.01.2012 г | E132: Чашникский | F132: 0.02
B133: 128 | C133: Камоид “Чиреи” | D133: Решение Чашникского райисполкома № 15 от 4.01.2012 г | E133: Чашникский | F133: 0.88
B134: 129 | C134: “Гора Федотова” | D134: Решение Шарковщинского райисполкома № 834 от 06.12.2011 г. | E134: Шарковщинский | F134: 180
B135: 130 | C135: “Гряда Зенкевича” | D135: Решение Шарковщинского райисполкома № 834 от 06.12.2011 г. | E135: Шарковщинский | F135: 80
B136: 131 | C136: “Быстрицкая долина” | D136: Решение Шарковщинского райисполкома № 834 от 06.12.2011 г. | E136: Шарковщинский | F136: 60
B137: 132 | C137: “Кушлевская долина прорыва” | D137: Решение Шарковщинского райисполкома № 834 от 06.12.2011 г. | E137: Шарковщинский | F137: 50
B138: 133 | C138: “Местачковая долина” | D138: Решение Шарковщинского райисполкома № 834 от 06.12.2011 г. | E138: Шарковщинский | F138: 50
B139: 134 | C139: “Большой камень Жуки-Ложновский” | D139: Решение Шарковщинского райисполкома № 834 от 06.12.2011 г. | E139: Шарковщинский | F139: 0.01
B140: 135 | C140: “Валун Дубовковский” | D140: Решение Шарковщинского райисполкома № 834 от 06.12.2011 г. | E140: Шарковщинский | F140: 0.01
B141: 136 | C141: “Большой камень Пашковский” | D141: Решение Шарковщинского райисполкома № 834 от 06.12.2011 г. | E141: Шарковщинский | F141: 0.01
B142: 137 | C142: “Большой камень Дубовковский” | D142: Решение Шарковщинского райисполкома № 834 от 06.12.2011 г. | E142: Шарковщинский | F142: 0.01
B143: 138 | C143: “Большой камень Лапуновский” | D143: Решение Шарковщинского райисполкома № 834 от 06.12.2011 г. | E143: Шарковщинский | F143: 0.01
B144: 139 | C144: “Бешеный камень Гридюшкинский” | D144: Решение Шарковщинского райисполкома № 834 от 06.12.2011 г. | E144: Шарковщинский | F144: 0.01
B145: 140 | C145: “Камень Иванский с надписью” | D145: Решение Шарковщинского райисполкома № 834 от 06.12.2011 г. | E145: Шарковщинский | F145: 0.01
B146: Гидрологические
B147: 141 | C147: “Никульский родник” | D147: Решение Браславского райисполкома № 21 от 15.01.2007 г. | E147: Браславский | F147: 2.33
B148: 142 | C148: “Родник Лазенки” | D148: Решение Браславского райисполкома № 21 от 15.01.2007 г. | E148: Браславский | F148: 1.03
B149: 143 | C149: “Родник Окменица” | D149: Решение Браславского райисполкома № 21 от 15.01.2007 г. | E149: Браславский | F149: 3.66
B150: 144 | C150: “Толстогорский родник” | D150: Решение Браславского райисполкома № 21 от 15.01.2007 г. | E150: Браславский | F150: 2.142
B151: 145 | C151: “Родник-исток Никли” | D151: Решение Браславского райисполкома № 21 от 15.01.2007 г. | E151: Браславский | F151: 4.59
B152: 146 | C152: “Карасинский родник” | D152: Решение Браславского райисполкома № 21 от 15.01.2007 г. | E152: Браславский | F152: 1.43
B153: 147 | C153: “Родник Петкун” | D153: Решение Браславского райисполкома № 21 от 15.01.2007 г. | E153: Браславский | F153: 1.15
B154: 148 | C154: Родник агрогородка Кохановичи | D154: Решение Верхнедвинского райисполкома № 523 от 10.06.2011 г. | E154: Верхнедвинский | F154: 0.01
B155: 149 | C155: Родник в урочище “Петровщина” | D155: Решение Верхнедвинского райисполкома № 523 от 10.06.2011 г. | E155: Верхнедвинский | F155: 0.01
B156: 150 | C156: “Бассейн реки Чижовка” | D156: Решение Дубровенского райисполкома № 216 от 18.04.1995г. | E156: Дубровенский | F156: 5
B157: 151 | C157: “Территория карьера льнозавода” | D157: Решение Дубровенского райисполкома № 216 от 18.04.1995г. | E157: Дубровенский | F157: 8
B158: 152 | C158: “Бородинцевская криница” | D158: Решение Дубровенского райисполкома № 281 от 29.09.1999 г. | E158: Дубровенский | F158: 0.01
B159: 153 | C159: “Гомельский родник” | D159: Решение Полоцкого райисполкома № 107 от 18.02.2011 г. | E159: Полоцкий | F159: 1
B160: 154 | C160: “Щербишские родники” | D160: Решение Поставского райисполкома № 734 от 31.12.1998 г. | E160: Поставский | F160: 0.3
B161: 155 | C161: “Лазарава крыніца” | D161: Решение Россонского райисполкома № 9 от 23.11.1999г. | E161: Россонский | F161: 0.01
B162: 156 | C162: Родник “Капличка” | D162: Решение Сенненского райисполкома № 22 от 19.11.1992 г. | E162: Сенненский | F162: 0.018
B163: 157 | C163: Родник “Песчанка” | D163: Решение Сенненского райисполкома № 22 от 19.11.1992 г. | E163: Сенненский | F163: 0.028
B164: 158 | C164: Родник “Барковщина” | D164: Решение Ушачского райисполкома № 156 от 06.07.1999 г. | E164: Ушачский | F164: 1
B165: 159 | C165: Родник “Иезус” | D165: Решение Чашникского райисполкома № 15 от 4.01.2012 г | E165: Чашникский | F165: 1.3
B166: 160 | C166: Родник “Пятенка” | D166: Решение Шумилинского райисполкома № 821 от 03.12.2012 г. | E166: Шумилинский | F166: 0.016
B167: 161 | C167: Родник “Свято-Успенский колодец” | D167: Решение Шумилинского райисполкома № 821 от 03.12.2012 г. | E167: Шумилинский | F167: 0.0025
B168: 162 | C168: Родник “Святой колодец” | D168: Решение Шумилинского райисполкома № 821 от 03.12.2012 г. | E168: Шумилинский | F168: 0.0025
B169: ИТОГО | F169: =SUM(F5:F168) -> 4035.392821

Sheet Сводная таблица
B2: Сводная ведомость особо охраняемых природных территорий Витебской области на 1.01.2014 г.
B3: № п/п | C3: Виды особо охраняемых территорий и объектов | D3: Количество охраняемых территорий и объектов | F3: Общая площадь (тыс. га) | H3: % от территории области
D5: 2012 | E5: 2013 | F5: 2012 | G5: 2013 | H5: 2012 | I5: 2013
B6: 1 | C6: Заповедники | D6: 1 | E6: 1 | F6: 66.202 | G6: 66.202 | H6: =F6/40.04839 -> 1.653050222 | I6: =G6/40.04839 -> 1.653050222
B7: 2 | C7: Национальные парки | D7: 2 | E7: 2 | F7: 65.551 | G7: 65.551 | H7: =F7/40.04839 -> 1.636794887 | I7: =G7/40.04839 -> 1.636794887 | J7: =G6+G7 -> 131.753
B8: 3 | C8: Заказники республиканского значения | D8: 22 | E8: 22 | F8: 166.07 | G8: ='Республиканские заказники.'!F29/1000 -> 166.07348 | H8: 4.146733489 | I8: 4.146820384
B9: 4 | C9: Заказники местного значения | D9: 60 | E9: ='Местные заказники'!B68 -> 60 | F9: 49.51 | G9: ='Местные заказники'!F69/1000 -> 49.93572 | H9: 1.236254441 | I9: 1.246884581
B10: 5 | C10: Памятники природы республиканского значения | D10: 76 | E10: 76 | F10: 0.57 | G10: ='Республиканские памятники'!F81/1000 -> 0.56699702 | H10: 0.01423278189 | I10: 0.0141577981
B11: 6 | C11: Памятники природы местного значения | D11: 165 | E11: ='Местные памятники'!B168 -> 162 | F11: 5.17 | G11: ='Местные памятники'!F169/1000 -> 4.035392821 | H11: 0.1290938287 | I11: 0.1007629226
B12: ИТОГО | D12: =SUM(D6:D11) -> 326 | E12: =SUM(E6:E11) -> 323 | F12: =SUM(F6:F11) -> 353.073 | G12: =SUM(G6:G11) -> 352.3645898 | H12: 8.816159651 | I12: 8.798470796
